{"text_format":"3","workbook":"xlsx","n_sheets":7,"sheets":["5 класс","6 класс","7 класс","8 класс","9 класс","10 класс","11 класс"],"not_rendered":{"defined_names":7},"read":"whole","date_system":"1900"}

{"sheet":"5 класс","index":0,"n_rows":27,"n_cols":8,"rows_kept":27,"merged":[[0,1,0,3]]}
[null,"5 класс Литература (школьный этап)"]
[null,"ФАМИЛИЯ Имя и Отчество участника","школа ","баллы","%","ФИО учителя","макс кол-во баллов ",50]
["участник","Кишкина Дарья Олеговна","МБОУ \"Вохтомская ОШ\"",7,{"$f":"7*100/50","v":14},"Рудакова О.М."]
["участник","Бормотова Маргарита Владимировна","МБОУ \"Ерцевская СШ им. С.И. Бочарова\"",11,{"$f":"11*100/50","v":22},"Черноусова Г.Д."]
["участник","Шатаев Семён Александрович","МБОУ \"Ерцевская СШ им. С.И. Бочарова\"",7,{"$f":"7*100/50","v":14},"Черноусова Г.Д."]
["участник","Черепанова Варвара Андреевна","МБОУ \"Ерцевская СШ им. С.И. Бочарова\"",7,14,"Черноусова Г.Д."]
["участник","Горовенко Варвара Сергеевна","МБОУ \"Ерцевская СШ им. С.И. Бочарова\"",3.5,{"$f":"3.5*100/50","v":7},"Черноусова Г.Д."]
["участник","Козлов Станислав Викторович","МБОУ \"Климовская СШ\"",7.5,15,"Пателина Е.М."]
["участник","Евдокимов Константин Александрович","МБОУ \"Коношеозерская СШ им. В.А.Корытова\"",7.5,{"$f":"D9*100/50","v":15},"Ионина О.А."]
["участник","Архачёва Василиса Витальевна","МБОУ \"Коношская СШ имени Н.П. Лавёрова\"",17.5,{"$f":"17.5*100/50","v":35},"Власова Г.В."]
["участник","Лукина Мария Алексеевна","МБОУ \"Коношская СШ имени Н.П. Лавёрова\"",13.5,27,"Мерёжина Н.Н."]
["участник","Цеповяз Диана Александровна","МБОУ \"Коношская СШ имени Н.П. Лавёрова\"",13.5,27,"Вилакова И.П."]
["участник","Букаева Таисия Дмитриевна","МБОУ \"Коношская СШ имени Н.П. Лавёрова\"",13,{"$f":"13*100/50","v":26},"Ершова Е.В."]
["участник","Скурихина Кира Андреевна","МБОУ \"Коношская СШ имени Н.П. Лавёрова\"",12.5,25,"Мерёжина Н.Н."]
["участник","Панова Елизавета Александровна","МБОУ \"Коношская СШ имени Н.П. Лавёрова\"",9,{"$f":"9*100/50","v":18},"Власова Г.В."]
["участник","Власова Мария Игоревна","МБОУ \"Коношская СШ имени Н.П. Лавёрова\"",8,16,"Мерёжина Н.Н."]
["участник","Юрин Артур Сергеевич","МБОУ \"Коношская СШ имени Н.П. Лавёрова\"",7.5,15,"Ершова Е.В."]
["участник","Кожемякин Андрей Иванович","МБОУ \"Коношская СШ имени Н.П. Лавёрова\"",7.5,15,"Власова Г.В."]
["участник","Андреев Илья Алексеевич","МБОУ \"Коношская СШ имени Н.П. Лавёрова\"",4,8,"Ершова Е.В."]
["участник","Буторин Владимир Александрович","МБОУ \"Коношская СШ имени Н.П. Лавёрова\"",0,0,"Власова Г.В."]
["победитель","Левшинова Олеся Васильевна","МБОУ \"Лесозаводская СШ\"",28,{"$f":"28*100/50","v":56},"Петрова Т.Н."]
["участник","Харламов Кирилл Сергеевич","МБОУ \"Лесозаводская СШ\"",8,16,"Петрова Т.Н."]
["участник","Варганов Кирилл Андреевич","МБОУ \"Лесозаводская СШ\"",6.5,13,"Петрова Т.Н."]
["участник","Кукушкина Маргарита Валерьевна","МБОУ \"Лесозаводская СШ\"",4,8,"Петрова Т.Н."]
["участник","Сархадова Мария Валерьевна","МБОУ \"Подюжская СШ им. В.А. Абрамова\"",17,{"$f":"17*100/50","v":34},"Шубина Е.В."]
["участник","Мачаликашвили Айшат Мовсаровна","МБОУ \"Подюжская СШ им. В.А. Абрамова\"",8,{"$f":"D26*100/50","v":16},"Шубина Е.В."]
["участник","Страшненков Никита Андреевич","МБОУ \"Подюжская СШ им. В.А. Абрамова\"",0,{"$f":"D27*100/50","v":0},"Шубина Е.В."]

{"sheet":"6 класс","index":1,"n_rows":35,"n_cols":8,"rows_kept":35,"merged":[[0,1,0,3]]}
[null,"6 класс Литература (школьный этап)"]
[null,"ФАМИЛИЯ Имя и Отчество участника","школа ","баллы","%","ФИО учителя","макс кол-во баллов ",50]
["победитель","Виноградов Алексей Владимирович","МБОУ \"Вохтомская ОШ\"",35.5,{"$f":"35.5*100/50","v":71},"Гольцева О.В."]
["призер","Юрина Ксения Анатольевна","МБОУ \"Лесозаводская СШ\"",35,70,"Ткаченко А.Н."]
["призер","Куклинова Марьяна Сергеевна","МБОУ \"Подюжская СШ им. В.А. Абрамова\"",32,{"$f":"D5*100/50","v":64},"Шубина Е.В."]
["призер","Рыжков Артём Алексеевич","МБОУ \"Ерцевская СШ им. С.И. Бочарова\"",29,{"$f":"29*100/50","v":58},"Черноусова Г.Д."]
["призер","Гаврилова Мария  Сергеевна ","МБОУ \"Коношская СШ имени Н.П. Лавёрова\"",25.5,{"$f":"25.5*100/50","v":51},"Комотёсова Н.Н."]
["призер","Шахова Алина Алексеевна","МБОУ \"Климовская СШ\"",24,{"$f":"24*100/50","v":48},"Петрова М.Н."]
["призер","Лапочкина Арина Александровна","МБОУ \"Лесозаводская СШ\"",22.5,{"$f":"22.5*100/50","v":45},"Ткаченко А.Н."]
["участник","Черсунов Данил Сергеевич","МБОУ \"Подюжская СШ им. В.А. Абрамова\"",20,{"$f":"D10*100/50","v":40},"Шубина Е.В."]
["участник","Юсупмурзина Полина Юрьевна","МБОУ \"Подюжская СШ им. В.А. Абрамова\"",16,{"$f":"D11*100/50","v":32},"Шубина Е.В."]
["участник","Попова Алина Геннадьевна","МБОУ \"Коношская СШ имени Н.П. Лавёрова\"",15.5,{"$f":"15.5*100/50","v":31},"Ершова Е.В."]
["участник"," Писарев Матвей Степанович","МБОУ \"Коношская СШ имени Н.П. Лавёрова\"",15,{"$f":"15*100/50","v":30},"Ершова Е.В."]
["участник","Жижикина Алена Сергеевна ","МБОУ \"Коношская СШ имени Н.П. Лавёрова\"",13.5,27,"Комотёсова Н.Н."]
["участник","Соколова Марина Алексеевна","МБОУ \"Ерцевская СШ им. С.И. Бочарова\"",12.5,{"$f":"12.5*100/50","v":25},"Черноусова Г.Д."]
["участник","Ибрагимов Руслан Александрович","МБОУ \"Коношская СШ имени Н.П. Лавёрова\"",12,24,"Ершова Е.В."]
["участник","Орлова Дарья Сергеевна","МБОУ \"Лесозаводская СШ\"",12,24,"Ткаченко А.Н."]
["участник","Аронова Ксения Евгеньевна","МБОУ \"Коношеозерская СШ им. В.А.Корытова\"",11,{"$f":"D18*100/50","v":22},"Ионина О.А."]
["участник","Черепанова Ульяна Сергеевна","МБОУ \"Коношская СШ имени Н.П. Лавёрова\"",11,{"$f":"11*100/50","v":22},"Ершова Е.В."]
["участник","Фрикликас Егор Максимович","МБОУ \"Ерцевская СШ им. С.И. Бочарова\"",10.5,{"$f":"10.5*100/50","v":21},"Черноусова Г.Д."]
["участник","Плотникова Полина Андреевна","МБОУ \"Лесозаводская СШ\"",10,{"$f":"10*100/50","v":20},"Ткаченко А.Н."]
["участник","Гергедава Анастасия Кахаевна","МБОУ \"Коношская СШ имени Н.П. Лавёрова\"",8.5,{"$f":"8.5*100/50","v":17},"Комотёсова Н.Н."]
["участник","Сидоровский Денис Сергеевич","МБОУ \"Коношская СШ имени Н.П. Лавёрова\"",8,{"$f":"8*100/50","v":16},"Ершова Е.В."]
["участник","Золтов Дмитрий Николаевич","МБОУ \"Ерцевская СШ им. С.И. Бочарова\"",7,{"$f":"7*100/50","v":14},"Каданцева Н.В."]
["участник","Базанов Евгений Дмитриевич","МБОУ \"Коношская СШ имени Н.П. Лавёрова\"",7,14,"Пальчикова А.А"]
["участник","Тупота Андрей Викторович","МБОУ \"Коношская СШ имени Н.П. Лавёрова\"",6,{"$f":"6*100/50","v":12},"Пальчикова А.А"]
["участник","Пальчиков Александр Андреевич","МБОУ \"Ерцевская СШ им. С.И. Бочарова\"",5,{"$f":"5*100/50","v":10},"Черноусова Г.Д."]
["участник","Егоров Павел Александрович","МБОУ \"Коношеозерская СШ им. В.А.Корытова\"",5,{"$f":"D28*100/50","v":10},"Ионина О.А."]
["участник","Ивашов Роман Сергеевич","МБОУ \"Вохтомская ОШ\"",4.5,9,"Гольцева О.В."]
["участник","Саримсаков Хаджиакбар Салимович","МБОУ \"Коношская СШ имени Н.П. Лавёрова\"",2,{"$f":"2*100/50","v":4},"Ершова Е.В."]
["участник","Юрьева Виктория Максимовна","МБОУ \"Ерцевская СШ им. С.И. Бочарова\"",0,0,"Черноусова Г.Д."]
["участник","Лобачева Арина Дмитриевна","МБОУ \"Коношеозерская СШ им. В.А.Корытова\"",0,{"$f":"D32*100/50","v":0},"Ионина О.А."]
["участник","Башкирев Алексей Николаевич","МБОУ \"Коношеозерская СШ им. В.А.Корытова\"",0,{"$f":"D33*100/50","v":0},"Ионина О.А."]
["участник","Назаров Артём Иванович","МБОУ \"Коношеозерская СШ им. В.А.Корытова\"",0,{"$f":"D34*100/50","v":0},"Ионина О.А."]
["участник","Латкин Димитрий Александрович","МБОУ \"Коношеозерская СШ им. В.А.Корытова\"",0,{"$f":"D35*100/50","v":0},"Ионина О.А."]

{"sheet":"7 класс","index":2,"n_rows":33,"n_cols":8,"rows_kept":33,"merged":[[0,1,0,3]]}
[null,"7 класс Литература (школьный этап)",{"$nulls":3},"макс кол-во баллов ",null,50]
[null,"ФАМИЛИЯ Имя и Отчество участника","школа ","баллы","%","ФИО учителя"]
["участник","Гандзий Иоланта Николаевна","МБОУ \"Вохтомская ОШ\"",7,{"$f":"7*100/50","v":14},"Гольцева О.В."]
["участник","Вавилина Варвара Алексеевна","МБОУ \"Ерцевская СШ им. С.И. Бочарова\"",8,16,"Черноусова Г.Д."]
["участник","Виноградов Алексей Иванович","МБОУ \"Ерцевская СШ им. С.И. Бочарова\"",8,{"$f":"8*100/50","v":16},"Черноусова Г.Д."]
["участник","Змиевская Милана Александровна","МБОУ \"Ерцевская СШ им. С.И. Бочарова\"",8,{"$f":"8*100/50","v":16},"Черноусова Г.Д."]
["участник","Лыла София Эдуардовна","МБОУ \"Ерцевская СШ им. С.И. Бочарова\"",6,{"$f":"6*100/50","v":12},"Черноусова Г.Д."]
["участник","Малинина Елизавета Валерьевна","МБОУ \"Ерцевская СШ им. С.И. Бочарова\"",4,{"$f":"4*100/50","v":8},"Черноусова Г.Д."]
["участник","Малышкина Алиса Юрьевна","МБОУ \"Ерцевская СШ им. С.И. Бочарова\"",11,{"$f":"11*100/50","v":22},"Черноусова Г.Д."]
["участник","Руссу Дарина Руслановна","МБОУ \"Ерцевская СШ им. С.И. Бочарова\"",4,{"$f":"4*100/50","v":8},"Черноусова Г.Д."]
["участник","Силичева Варвара Дмитриевна","МБОУ \"Ерцевская СШ им. С.И. Бочарова\"",9,{"$f":"9*100/50","v":18},"Черноусова Г.Д."]
["участник","Черепанов Роман Дмитриевич","МБОУ \"Ерцевская СШ им. С.И. Бочарова\"",8,{"$f":"8*100/50","v":16},"Черноусова Г.Д."]
["участник","Илатовская София Алексеевна","МБОУ \"Коношеозерская СШ им. В.А.Корытова\"",7,{"$f":"D13*100/50","v":14},"Ефремычева Г.И."]
["участник","Филиппова Дарья Дмитриевна","МБОУ \"Коношеозерская СШ им. В.А.Корытова\"",3,{"$f":"D14*100/50","v":6},"Ефремычева Г.И."]
["участник","Филиппова Татьяна Дмитриевна","МБОУ \"Коношеозерская СШ им. В.А.Корытова\"",17,{"$f":"D15*100/50","v":34},"Ефремычева Г.И."]
["участник","Хохлов Данил Михайлович","МБОУ \"Коношеозерская СШ им. В.А.Корытова\"",8,{"$f":"D16*100/50","v":16},"Ефремычева Г.И."]
["участник","Вохтомин Тимур Алексеевич","МБОУ \"Коношская СШ имени Н.П. Лавёрова\"",10,20,"Власова Г.В."]
["победитель","Горбачёва Алина Евгеньевна","МБОУ \"Коношская СШ имени Н.П. Лавёрова\"",25,{"$f":"25*100/50","v":50},"Кузнецова Л.В."]
["участник","Ершов Илья Владимирович","МБОУ \"Коношская СШ имени Н.П. Лавёрова\"",10,{"$f":"10*100/50","v":20},"Кузнецова Л.В."]
["участник","Киселева Полина Павловна ","МБОУ \"Коношская СШ имени Н.П. Лавёрова\"",5,10,"Комотёсова Н.Н."]
["участник","Мельникова Алина Андреевна","МБОУ \"Коношская СШ имени Н.П. Лавёрова\"",20,{"$f":"20*100/50","v":40},"Комотёсова Н.Н."]
["участник","Новгородова Виталина Алексеевна ","МБОУ \"Коношская СШ имени Н.П. Лавёрова\"",5,10,"Комотёсова Н.Н."]
["участник","Орехов Илья Артёмович","МБОУ \"Коношская СШ имени Н.П. Лавёрова\"",10,{"$f":"10*100/50","v":20},"Кузнецова Л.В."]
["участник","Тошова Ольга Шамшодовна","МБОУ \"Коношская СШ имени Н.П. Лавёрова\"",10,{"$f":"10*100/50","v":20},"Власова Г.В."]
["участник","Филин Денис Сергеевич","МБОУ \"Коношская СШ имени Н.П. Лавёрова\"",5,{"$f":"5*100/50","v":10},"Кузнецова Л.В."]
["участник","Фомина Полина Александровна","МБОУ \"Коношская СШ имени Н.П. Лавёрова\"",15,{"$f":"15*100/50","v":30},"Кузнецова Л.В."]
["участник","Кузнецова Анастасия Юрьевна","МБОУ \"Лесозаводская СШ\"",16,{"$f":"16*100/50","v":32},"Петрова Т.Н."]
["участник","Кусочкина Софья Андреевна","МБОУ \"Лесозаводская СШ\"",5,10,"Ткаченко А.Н."]
["участник","Прибыткова Вероника Артёмовна","МБОУ \"Лесозаводская СШ\"",22,{"$f":"22*100/50","v":44},"Ткаченко А.Н."]
["участник","Решетникова Полина Михайловна","МБОУ \"Лесозаводская СШ\"",5,10,"Ткаченко А.Н."]
["участник","Сиделёва Василиса Александровна","МБОУ \"Лесозаводская СШ\"",4,8,"Петрова Т.Н."]
["участник","Смирнова Лидия Игоревна","МБОУ \"Лесозаводская СШ\"",13,26,"Ткаченко А.Н."]
["участник","Топоров Арсений Григорьевич","МБОУ \"Лесозаводская СШ\"",2,{"$f":"2*100/50","v":4},"Петрова Т.Н."]

{"sheet":"8 класс","index":3,"n_rows":22,"n_cols":8,"rows_kept":22,"merged":[[0,1,0,3]]}
[null,"8 класс Литература (школьный этап)"]
[null,"Фамилия Имя и Отчество участника","школа ","баллы","%","ФИО учителя","макс кол-во баллов ",50]
["победитель","Лопатина Варвара Викторовна","МБОУ \"Ерцевская СШ им. С.И. Бочарова\"",30,60,"Каданцева Н.В."]
["участник","Смирнов Александр Дмитриевич","МБОУ \"Коношеозерская СШ им. В.А.Корытова\"",19,{"$f":"D4*100/50","v":38},"Ефремычева Г.И."]
["участник","Ожигин Максим Владимирович","МБОУ \"Коношеозерская СШ им. В.А.Корытова\"",16,{"$f":"D5*100/50","v":32},"Ефремычева Г.И."]
["участник","Замыцкий Михаил Евгеньевич","МБОУ \"Коношеозерская СШ им. В.А.Корытова\"",11,{"$f":"D6*100/50","v":22},"Ефремычева Г.И."]
["участник","Бажуков Антон Владимирович","МБОУ \"Коношеозерская СШ им. В.А.Корытова\"",4,{"$f":"D7*100/50","v":8},"Ефремычева Г.И."]
["победитель","Смирнова Софья Андреевна","МБОУ \"Коношская СШ имени Н.П. Лавёрова\"",32,{"$f":"32*100/50","v":64},"Власова Г.В."]
["призер","Подольская Кристина Максимовна","МБОУ \"Коношская СШ имени Н.П. Лавёрова\"",30,60,"Власова Г.В."]
["призер","Ершова Анастасия Сергеевна","МБОУ \"Коношская СШ имени Н.П. Лавёрова\"",28,56,"Кузнецова Л.В."]
["призер","Закатов Леонид Сергеевич","МБОУ \"Коношская СШ имени Н.П. Лавёрова\"",25,50,"Власова Г.В."]
["участник","Лупандина Вероника Артемовна","МБОУ \"Коношская СШ имени Н.П. Лавёрова\"",22,44,"Власова Г.В."]
["участник","Румянцев Илья Владимирович","МБОУ \"Коношская СШ имени Н.П. Лавёрова\"",16,32,"Власова Г.В."]
["участник","Опаницына Диана Александровна","МБОУ \"Коношская СШ имени Н.П. Лавёрова\"",12,{"$f":"12*100/50","v":24},"Власова Г.В."]
["участник","Симановский Дмитрий Александрович","МБОУ \"Коношская СШ имени Н.П. Лавёрова\"",9,18,"Власова Г.В."]
["участник","Шушерин Николай Михайлович","МБОУ \"Коношская СШ имени Н.П. Лавёрова\"",7,14,"Пальчикова А.А."]
["участник","Кокачев Климентий Васильевич","МБОУ \"Коношская СШ имени Н.П. Лавёрова\"",5,10,"Пальчикова А.А."]
["участник","Анфимова Елизавета Александровна","МБОУ \"Коношская СШ имени Н.П. Лавёрова\"",5,10,"Власова Г.В."]
["участник","Григорьева Ксения Евгеньевна","МБОУ \"Коношская СШ имени Н.П. Лавёрова\"",5,10,"Кузнецова Л.В."]
["участник","Трифанов Максим Сергеевич","МБОУ \"Коношская СШ имени Н.П. Лавёрова\"",4,8,"Власова Г.В."]
["участник","Анфимова Валерия Александровна","МБОУ \"Коношская СШ имени Н.П. Лавёрова\"",3,6,"Власова Г.В."]
["участник","Данилова Дарья Анатольевна","МБОУ \"Лесозаводская СШ\"",20,40,"Ткаченко А.Н."]

{"sheet":"9 класс","index":4,"n_rows":24,"n_cols":9,"rows_kept":24,"merged":[[0,1,0,3]]}
[null,"9 класс Литература (школьный этап)"]
[null,"Фамилия Имя и Отчество участника","школа ","баллы","%","ФИО учителя","макс кол-во баллов ",null,45]
["победитель","Ивашова Анна Сергеевна","МБОУ \"Вохтомская ОШ\"",34,{"$f":"D3*100/45","v":{"v":75.55555555555556,"d":"76"}},"Гольцева О.В."]
["участник","Лигостаева Екатерина Анатольевна","МБОУ \"Ерцевская СШ им. С.И. Бочарова\"",6,{"v":13.333333333333334,"d":"13"},"Каданцева Н.В."]
["победитель","Маурин Илья Николаевич","МБОУ \"Коношеозерская СШ им. В.А.Корытова\"",30,{"v":66.66666666666667,"d":"67"},"Ионина О.А."]
["участник","Васильев Максим Иванович","МБОУ \"Коношеозерская СШ им. В.А.Корытова\"",15,{"v":33.333333333333336,"d":"33"},"Ионина О.А."]
["участник","Киселев Максим Александрович","МБОУ \"Коношеозерская СШ им. В.А.Корытова\"",3,{"v":6.666666666666667,"d":"7"},"Ионина О.А."]
["победитель","Пинаевская Дарья Алексеевна","МБОУ \"Коношская СШ имени Н.П. Лавёрова\"",30,{"v":66.66666666666667,"d":"67"},"Мерёжина Н.Н."]
["призер"," Катунина Полина Валерьевна","МБОУ \"Коношская СШ имени Н.П. Лавёрова\"",28,{"v":62.22222222222222,"d":"62"},"Вилакова И.П."]
["призер","Арсенина Нина Сергеевна","МБОУ \"Коношская СШ имени Н.П. Лавёрова\"",27,60,"Вилакова И.П."]
["призер","Райков Степан Владимирович ","МБОУ \"Коношская СШ имени Н.П. Лавёрова\"",24,{"v":53.333333333333336,"d":"53"},"Комотёсова Н.Н."]
["призер","Красов Арсений Сергеевич","МБОУ \"Коношская СШ имени Н.П. Лавёрова\"",22,{"v":48.888888888888886,"d":"49"},"Мерёжина Н.Н."]
["призер","Клюшанова Алина Вадимовна","МБОУ \"Коношская СШ имени Н.П. Лавёрова\"",21,{"v":46.666666666666664,"d":"47"},"Комотёсова Н.Н."]
["участник","Поздеева Влада Анатольевна","МБОУ \"Коношская СШ имени Н.П. Лавёрова\"",20,{"v":44.44444444444444,"d":"44"},"Вилакова И.П."]
["участник","Пригодин Андрей Алексеевич","МБОУ \"Коношская СШ имени Н.П. Лавёрова\"",16,{"v":35.55555555555556,"d":"36"},"Комотёсова Н.Н."]
["участник","Сёмова Ксения Николаевна ","МБОУ \"Коношская СШ имени Н.П. Лавёрова\"",14,{"v":31.11111111111111,"d":"31"},"Комотёсова Н.Н."]
["участник","Глухарева Анна Николаевна","МБОУ \"Коношская СШ имени Н.П. Лавёрова\"",12,{"v":26.666666666666668,"d":"27"},"Вилакова И.П."]
["участник","Ермолин Максим Николаевич","МБОУ \"Коношская СШ имени Н.П. Лавёрова\"",9,20,"Мерёжина Н.Н."]
["участник","Севастьянова Анастасия Алексеевна","МБОУ \"Коношская СШ имени Н.П. Лавёрова\"",6,{"v":13.333333333333334,"d":"13"},"Вилакова И.П."]
["победитель","Ракитина Дарья Владимировна","МБОУ \"Лесозаводская СШ\"",29,{"v":64.44444444444444,"d":"64"},"Ткаченко А.Н."]
["призер","Смирнова Милана Сергеевна","МБОУ \"Лесозаводская СШ\"",28,{"v":62.22222222222222,"d":"62"},"Ткаченко А.Н."]
["призер","Калинина Полина Максимовна","МБОУ \"Лесозаводская СШ\"",28,{"v":62.22222222222222,"d":"62"},"Ткаченко А.Н."]
["призер","Верещагина Юлия Сергеевна","МБОУ \"Лесозаводская СШ\"",26,{"v":57.77777777777778,"d":"58"},"Дубонос С.Н."]
["участник","Седунова Кристина Александровна","МБОУ \"Лесозаводская СШ\"",12,{"v":26.666666666666668,"d":"27"},"Ткаченко А.Н."]

{"sheet":"10 класс","index":5,"n_rows":12,"n_cols":8,"rows_kept":12,"merged":[[0,1,0,3]]}
[null,"10 класс Литература(школьный этап)"]
[null,"Фамилия Имя и Отчество участника","школа ","баллы","%","ФИО учителя","макс кол-во баллов ",45]
["победитель","Колесникович  Карина Александровна","МБОУ \"Коношеозерская СШ им. В.А.Корытова\"",32,{"$f":"D3*100/45","v":{"v":71.11111111111111,"d":"71"}},"Ионина О.А."]
["призер","Шилова Светлана Александровна","МБОУ \"Коношеозерская СШ им. В.А.Корытова\"",22,{"$f":"D4*100/45","v":{"v":48.888888888888886,"d":"49"}},"Ионина О.А."]
["участник","Терёхина Карина Александровна","МБОУ \"Коношеозерская СШ им. В.А.Корытова\"",0,{"$f":"D5*100/45","v":0},"Ионина О.А."]
["победитель","Куланин Матвей Андреевич","МБОУ \"Коношская СШ имени Н.П. Лавёрова\"",35,{"$f":"35*100/45","v":{"v":77.77777777777777,"d":"78"}},"Мерёжина Н.Н."]
["призер","Решетникова Елизавета Владимировна","МБОУ \"Коношская СШ имени Н.П. Лавёрова\"",30,{"$f":"30*100/45","v":{"v":66.66666666666667,"d":"67"}},"Мерёжина Н.Н."]
["призер","Юрьева Ксения Васильевна","МБОУ \"Коношская СШ имени Н.П. Лавёрова\"",29,{"$f":"29*100/45","v":{"v":64.44444444444444,"d":"64"}},"Мерёжина Н.Н."]
["призер","Лукаш Анастасия Павловна","МБОУ \"Коношская СШ имени Н.П. Лавёрова\"",28,{"$f":"28*100/45","v":{"v":62.22222222222222,"d":"62"}},"Мерёжина Н.Н."]
["призер","Горчакова Алёна Александровна","МБОУ \"Лесозаводская СШ\"",26,{"$f":"26*100/45","v":{"v":57.77777777777778,"d":"58"}},"Петрова Т.Н."]
["участник","Б\\урлака Алиса Алексеевна","МБОУ \"Лесозаводская СШ\"",20,{"$f":"20*100/45","v":{"v":44.44444444444444,"d":"44"}},"Петрова Т.Н."]
["участник","Тухватчина Евгения Романовна","МБОУ \"Подюжская СШ им. В.А. Абрамова\"",15,{"$f":"D12*100/45","v":{"v":33.333333333333336,"d":"33"}},"Быкова А.В."]

{"sheet":"11 класс","index":6,"n_rows":11,"n_cols":8,"rows_kept":11,"merged":[[0,1,0,3]]}
[null,"11 класс Литература (школьный этап)"]
[null,"Фамилия Имя и Отчество участника","школа ","баллы","%","ФИО учителя","макс кол-во баллов ",45]
["победитель","Валуевич Арина Алексеевна","МБОУ \"Ерцевская СШ им. С.И. Бочарова\"",25,{"$f":"25*100/45","v":{"v":55.55555555555556,"d":"56"}},"Пугачева И.Г."]
["участник","Наумов Вячеслав Александрович","МБОУ \"Коношеозерская СШ им. В.А.Корытова\"",8,{"$f":"D4*100/45","v":{"v":17.77777777777778,"d":"18"}},"Ефремычева Г.И."]
["участник","Старцева Екатерина Александровна","МБОУ \"Коношеозерская СШ им. В.А.Корытова\"",8,{"$f":"D5*100/45","v":{"v":17.77777777777778,"d":"18"}},"Ефремычева Г.И."]
["участник","Кзенкова Олеся Алексеевна","МБОУ \"Коношеозерская СШ им. В.А.Корытова\"",5,{"$f":"D6*100/45","v":{"v":11.11111111111111,"d":"11"}},"Ефремычева Г.И."]
["победитель","Васильева Карина Сергеевна","МБОУ \"Коношская СШ имени Н.П. Лавёрова\"",45,100,"Мерёжина Н.Н."]
["призер","Ерина Арина Олеговна","МБОУ \"Коношская СШ имени Н.П. Лавёрова\"",30,{"$f":"30*100/45","v":{"v":66.66666666666667,"d":"67"}},"Мерёжина Н.Н."]
["призер","Корытова Полина Владимировна","МБОУ \"Подюжская СШ им. В.А. Абрамова\"",34,{"$f":"D9*100/45","v":{"v":75.55555555555556,"d":"76"}},"Корытова Е.М."]
["призер","Скалозубова София Андреевна","МБОУ \"Подюжская СШ им. В.А. Абрамова\"",23,{"$f":"D10*100/45","v":{"v":51.111111111111114,"d":"51"}},"Корытова Е.М."]
["победитель","Кулик Ольга Павловна","МБОУ \"Тавреньгская СШ\"",28,{"$f":"D11*100/45","v":{"v":62.22222222222222,"d":"62"}},"Сидоровская Е. В. "]